bitfinex/quotes_BTCUSD_20220111
["timestamp","ask_amount","ask_price","bid_price","bid_amount"]
[1641916900181,0.00376623,41745.0,41744.0,0.421387]
[1641916900583,0.00576623,41745.0,41744.0,0.421387]
[1641916900782,0.00576623,41745.0,41744.0,0.373487]
[1641916900984,0.00576623,41745.0,41742.0,0.00066558]
[1641916901185,0.65,41744.0,41742.0,0.00066558]
[1641916901387,0.33008745,41743.0,41742.0,0.00066558]
[1641916901684,0.36249609,41743.0,41742.0,0.00066558]
[1641916901887,0.36249609,41743.0,41730.0,0.05338285]
[1641916902133,0.36249609,41743.0,41740.0,0.0006656]
[1641916902738,0.6,41742.0,41729.0,0.08869589]
[1641916902935,0.67976457,41743.0,41729.0,0.08997896]
[1641916903134,0.00015,41740.0,41729.0,0.08869589]
[1641916903335,0.00015,41740.0,41724.0,0.68523284]
[1641916903541,0.00127729,41736.0,41725.0,0.373522]
[1641916903735,0.059923,41735.0,41725.0,0.373522]
[1641916903937,0.40602741,41727.0,41725.0,0.373522]
[1641916904539,0.40602741,41727.0,41719.0,0.429588]
[1641916904540,0.76870168,41727.0,41723.0,0.58533284]
[1641916904736,0.30647325,41726.0,41723.0,0.58533284]
[1641916904935,0.77408323,41727.0,41724.0,0.026648]
[1641916905136,0.77408323,41727.0,41723.0,0.58533284]
[1641916905137,0.46202741,41727.0,41723.0,0.58533284]
[1641916905335,0.46328282,41727.0,41723.0,0.58533284]
[1641916905786,0.45728282,41727.0,41723.0,0.00083579]
[1641916906382,0.40853823,41727.0,41723.0,0.00083579]
[1641916906584,0.41553823,41727.0,41719.0,0.5199]
[1641916906783,0.41553823,41727.0,41723.0,0.00056782]
[1641916907188,0.41553823,41727.0,41724.0,0.026648]
[1641916907385,0.41679364,41727.0,41723.0,0.00056782]
[1641916907784,0.41679364,41727.0,41721.0,0.3336836]
[1641916907987,0.41679364,41727.0,41723.0,0.00056782]
[1641916908386,0.41804905,41727.0,41723.0,0.00056782]
[1641916908686,0.42704905,41727.0,41723.0,0.00056782]
[1641916909087,0.42704905,41727.0,41721.0,0.05]
[1641916909287,0.42704905,41727.0,41723.0,0.00063848]
[1641916909533,0.02227705,41727.0,41726.0,1.276647]
[1641916909736,0.02227705,41727.0,41726.0,1.376547]
[1641916909933,0.00627705,41727.0,41726.0,1.526547]
[1641916910135,0.00067728,41736.0,41727.0,0.8]
[1641916910334,0.0012886,41738.0,41731.0,0.0999]
[1641916910536,0.47889397,41735.0,41731.0,0.0999]
[1641916911134,0.47889397,41735.0,41731.0,0.1499]
[1641916911535,0.48014938,41735.0,41732.0,0.25326826]
[1641916912135,0.00125541,41735.0,41732.0,0.25326826]
[1641916912439,0.00125541,41735.0,41733.0,0.00074357]
[1641916912636,0.04851082,41735.0,41733.0,0.00074357]
[1641916913679,0.04976623,41735.0,41733.0,0.00074357]
[1641916913880,0.50316881,41735.0,41733.0,0.00074357]
[1641916914682,0.53442422,41735.0,41733.0,0.00274357]
[1641916915482,0.91756384,41735.0,41733.0,0.00274357]
[1641916915682,0.91881925,41735.0,41733.0,0.00274357]
[1641916915882,0.50567963,41735.0,41733.0,0.00074357]
[1641916916082,0.50567963,41735.0,41733.0,0.10064357]
[1641916916283,0.50567963,41735.0,41733.0,0.15064357]
[1641916916682,0.05953246,41735.0,41733.0,0.15164357]
[1641916916883,0.05953246,41735.0,41734.0,1.25603301]
[1641916917132,0.05953246,41735.0,41734.0,0.13056401]
[1641916917332,0.05953246,41735.0,41734.0,0.0979]
[1641916917534,0.05953246,41735.0,41734.0,0.04864306]
[1641916917736,0.06078787,41735.0,41734.0,0.04864306]
[1641916917933,0.06078787,41735.0,41725.0,0.65113527]
[1641916917934,0.4,41733.0,41725.0,0.31033062]
[1641916918235,0.8,41732.0,41723.0,0.68445058]
[1641916918433,0.41996241,41725.0,41723.0,0.54085058]
[1641916918834,0.38249367,41724.0,41723.0,0.54085058]
[1641916919333,0.38249367,41724.0,41717.0,0.77072356]
[1641916919535,0.00128172,41721.0,41710.0,0.95065]
[1641916919734,0.00128172,41721.0,41711.0,0.026647]
[1641916919936,0.0012578,41716.0,41710.0,0.00015]
[1641916920238,0.0012578,41716.0,41714.0,0.0999]
[1641916920535,0.0012578,41716.0,41708.0,0.03879266]
[1641916920536,0.4,41713.0,41708.0,0.03879266]
[1641916920792,0.4,41713.0,41706.0,0.009591]
[1641916920793,0.6839797,41712.0,41706.0,0.009591]
[1641916920987,0.00123876,41709.0,41706.0,0.009591]
[1641916921183,0.373592,41708.0,41701.0,0.01]
[1641916921383,0.55,41708.0,41707.0,0.00082872]
[1641916921584,1.31320959,41708.0,41707.0,0.00082872]
[1641916921785,0.0012686,41708.0,41707.0,0.00082872]
[1641916922083,0.00125541,41708.0,41707.0,0.00082872]
[1641916922282,0.00125541,41708.0,41701.0,0.01]
[1641916922482,0.00125541,41708.0,41705.0,0.00082877]
[1641916922483,0.39578732,41707.0,41705.0,0.00082877]
[1641916922985,0.41807567,41706.0,41705.0,0.00082877]
[1641916923182,0.41933108,41706.0,41705.0,0.00082877]
[1641916923583,0.79292308,41706.0,41701.0,0.01]
[1641916923784,0.41933108,41706.0,41703.0,0.00082883]
[1641916923983,0.00120269,41704.0,41703.0,0.00082883]
[1641916924184,0.5524581,41704.0,41703.0,0.00082883]
[1641916924385,0.0024581,41704.0,41703.0,0.00082883]
[1641916924633,0.0604581,41704.0,41701.0,0.01]
[1641916924832,0.68162015,41703.0,41701.0,0.01]
[1641916925032,1.03219825,41702.0,41701.0,0.01082889]
[1641916925231,0.70579025,41702.0,41701.0,0.01082889]
[1641916925636,0.38219825,41702.0,41701.0,0.01082889]
[1641916925934,0.05,41702.0,41701.0,0.01]
[1641916926133,0.00125541,41703.0,41701.0,0.01]
[1641916926334,0.00125541,41702.0,41701.0,0.55900252]
[1641916926535,0.00125541,41706.0,41703.0,0.0267]
[1641916926734,0.00125541,41706.0,41705.0,1.226694]
[1641916927033,0.00125541,41712.0,41707.0,1.272]
[1641916927237,0.00125541,41712.0,41709.0,0.46918651]
[1641916927442,0.00125541,41712.0,41710.0,0.47232601]
[1641916927634,0.00125541,41712.0,41711.0,0.68316719]
[1641916927833,0.00015,41720.0,41712.0,1.25]
[1641916928035,0.00015,41720.0,41713.0,0.0479]
[1641916928291,0.00015,41720.0,41717.0,0.026667]
[1641916928583,0.00125541,41721.0,41719.0,0.026663]
[1641916928782,0.00125541,41721.0,41720.0,3.79745339]
[1641916928984,0.00125541,41725.0,41721.0,1.25721727]
[1641916929184,0.00125541,41725.0,41724.0,1.026652]
[1641916929384,0.00015,41730.0,41724.0,2.346552]
[1641916929584,0.00015,41730.0,41728.0,0.026643]
[1641916929784,0.00015,41730.0,41729.0,0.974539]
[1641916929985,0.00015,41730.0,41729.0,1.27653898]
[1641916930287,0.00015,41730.0,41729.0,1.74577311]
[1641916930487,0.00015,41730.0,41729.0,2.14458255]
[1641916930685,0.02315,41730.0,41729.0,1.24458255]
[1641916931185,0.02315,41730.0,41729.0,0.93516168]
[1641916931785,0.01815,41730.0,41729.0,0.93516168]
[1641916932034,0.00068534,41735.0,41729.0,0.93516168]
[1641916932235,0.00068534,41735.0,41730.0,0.30162701]
[1641916932435,0.00068534,41735.0,41731.0,0.3714591]
[1641916932635,0.242,41732.0,41731.0,0.224535]
[1641916933037,0.242,41732.0,41731.0,0.124535]
[1641916933435,0.242,41732.0,41731.0,0.0479]
[1641916934037,0.221,41732.0,41731.0,0.0479]
[1641916934237,0.221,41732.0,41731.0,0.074534]
[1641916934438,0.221,41732.0,41729.0,0.00078875]
[1641916934637,0.24,41732.0,41731.0,0.004]
[1641916934838,0.019,41732.0,41731.0,0.0481]
[1641916935439,0.019,41732.0,41731.0,0.004]
[1641916935637,0.3938043,41732.0,41731.0,0.004]
[1641916935887,1.26095415,41732.0,41729.0,0.00077997]
[1641916936188,1.26095415,41732.0,41720.0,0.00015]
[1641916936189,0.059937,41727.0,41720.0,0.00015]
[1641916936388,0.00123063,41721.0,41720.0,0.00015]
[1641916936581,0.00123063,41721.0,41720.0,0.02615]
[1641916936582,0.44381263,41721.0,41720.0,0.02615]
[1641916936782,0.49381263,41721.0,41720.0,0.02615]
[1641916937182,0.79816263,41721.0,41720.0,0.02615]
[1641916937583,0.44381263,41721.0,41720.0,0.02615]
[1641916937783,0.49381263,41721.0,41720.0,0.02615]
[1641916938682,0.459582,41721.0,41720.0,0.00015]
[1641916939082,0.459582,41721.0,41719.0,0.00015]
[1641916939536,0.459582,41721.0,41718.0,0.00057692]
[1641916939837,0.13599,41721.0,41718.0,0.00057692]
[1641916940036,0.067,41721.0,41718.0,0.00057692]
[1641916940236,0.067,41721.0,41711.0,0.41740916]
[1641916940237,0.373592,41720.0,41711.0,0.41740916]
[1641916940439,0.39927092,41722.0,41717.0,0.00063437]
[1641916940639,0.8,41720.0,41713.0,0.0999]
[1641916940838,0.8,41720.0,41718.0,0.00015]
[1641916941039,0.37808113,41717.0,41714.0,0.00015]
[1641916941238,0.37808113,41717.0,41711.0,0.00253787]
[1641916941443,0.42808113,41717.0,41709.0,0.00015]
[1641916941640,0.42808113,41717.0,41710.0,0.026675]
[1641916942039,0.42808113,41717.0,41710.0,0.026825]
[1641916942439,0.42808113,41717.0,41710.0,0.126725]
[1641916942639,0.48808113,41717.0,41710.0,0.179725]
[1641916942842,0.35769765,41715.0,41710.0,0.129725]
[1641916943042,0.40769765,41715.0,41710.0,0.15305]
[1641916943481,0.40769765,41715.0,41710.0,0.10305]
[1641916943880,0.00120335,41713.0,41710.0,0.10005]
[1641916944084,0.00120335,41713.0,41710.0,0.10086477]
[1641916944483,0.046745,41713.0,41710.0,0.10086477]
[1641916944682,2.52100385,41712.0,41710.0,0.10386477]
[1641916944881,0.37480937,41711.0,41710.0,0.10386477]
[1641916945083,0.35,41710.0,41701.0,0.01]
[1641916945282,0.35,41710.0,41708.0,0.00081482]
[1641916945483,0.4,41710.0,41708.0,0.00081482]
[1641916946085,0.36562567,41709.0,41708.0,0.00081482]
[1641916946284,0.36562567,41709.0,41701.0,0.01]
[1641916946488,0.4235928,41706.0,41701.0,0.01]
[1641916946886,0.05,41705.0,41701.0,0.01]
[1641916948333,0.05,41705.0,41702.0,0.25313301]
[1641916948533,0.05,41705.0,41701.0,0.01]
[1641916948733,0.004,41705.0,41701.0,0.01]
[1641916948933,0.004,41705.0,41702.0,0.026695]
[1641916949133,0.004,41705.0,41702.0,0.086641]
[1641916949337,0.004,41705.0,41704.0,1.026697]
[1641916949534,0.004,41705.0,41704.0,1.126697]
[1641916949734,0.004,41705.0,41704.0,1.96797462]
[1641916950138,0.004,41705.0,41704.0,2.08784962]
[1641916950634,0.00085654,41718.0,41706.0,0.20527913]
[1641916950887,0.00085654,41718.0,41710.0,0.326679]
[1641916951093,0.2248,41719.0,41714.0,0.026673]
[1641916951288,0.2248,41719.0,41718.0,1.298666]
[1641916951487,0.2248,41719.0,41718.0,1.5916625]
[1641916951687,0.2248,41719.0,41718.0,1.6916625]
[1641916952489,0.2248,41719.0,41718.0,0.126666]
[1641916952687,0.2248,41719.0,41718.0,0.141666]
[1641916952889,0.2248,41719.0,41718.0,0.041666]
[1641916953086,0.2248,41719.0,41718.0,1.313666]
[1641916953487,0.2248,41719.0,41718.0,1.72493504]
[1641916953887,0.2248,41719.0,41718.0,2.1564694]
[1641916954088,0.2248,41719.0,41718.0,2.1414694]
[1641916954738,0.00138989,41730.0,41719.0,0.059914]
[1641916954939,0.00085663,41721.0,41719.0,1.66325175]
[1641916955140,0.00085663,41721.0,41719.0,1.76325175]
[1641916955538,0.00085663,41721.0,41719.0,3.13515175]
[1641916955940,0.00138989,41730.0,41719.0,3.13515175]
[1641916956241,0.00085662,41722.0,41719.0,3.13515175]
[1641916956438,0.00085662,41722.0,41719.0,1.88515175]
[1641916956638,0.00085662,41722.0,41719.0,1.89715175]
[1641916957038,0.00138989,41730.0,41719.0,2.30562754]
[1641916957244,0.00085662,41722.0,41719.0,1.94125175]
[1641916958039,0.00085662,41722.0,41719.0,1.92925175]
[1641916958293,0.00015,41730.0,41719.0,2.70149607]
[1641916958485,0.00085662,41722.0,41719.0,1.9300636]
[1641916958684,0.00085662,41722.0,41719.0,1.9640636]
[1641916958885,0.00085662,41722.0,41719.0,2.2140636]
[1641916959086,0.00085662,41722.0,41719.0,2.4140636]
[1641916959285,0.00085662,41722.0,41721.0,2.8219]
[1641916959486,0.00015,41730.0,41721.0,3.30445218]
[1641916959688,0.00015,41730.0,41729.0,0.47401295]
[1641916960088,0.00015,41730.0,41729.0,0.60065195]
[1641916960488,0.00015,41730.0,41729.0,0.126639]
[1641916960695,0.00015,41730.0,41729.0,0.006]
[1641916960890,0.82497886,41730.0,41729.0,0.006]
[1641916961088,0.92497886,41730.0,41729.0,0.006]
[1641916961288,0.87497886,41730.0,41729.0,0.006]
[1641916961689,0.87497886,41730.0,41729.0,0.1059]
[1641916961690,0.42497886,41730.0,41729.0,0.1059]
[1641916961891,0.05138686,41730.0,41729.0,0.1059]
[1641916962133,0.00138686,41730.0,41729.0,0.0999]
[1641916962734,0.00138686,41730.0,41729.0,0.1029]
[1641916964434,0.00138686,41730.0,41724.0,1.326816]
[1641916964635,0.00138686,41730.0,41729.0,0.003]
[1641916965793,0.00015,41730.0,41729.0,0.003]
[1641916965982,0.00015,41730.0,41729.0,0.029639]
[1641916966584,0.00015,41730.0,41729.0,0.026639]
[1641916966785,0.00015,41730.0,41729.0,2.40054118]
[1641916966984,0.00015,41730.0,41729.0,3.71664118]
[1641916967187,0.00015,41730.0,41729.0,3.81664118]
[1641916967791,0.00015,41730.0,41729.0,4.01664118]
[1641916967989,0.00015,41730.0,41729.0,4.06388575]
[1641916968189,0.00015,41730.0,41729.0,3.50599199]
[1641916968589,0.00015,41730.0,41729.0,3.45599199]
[1641916968788,0.00015,41730.0,41729.0,3.66999199]
[1641916968990,0.00015,41740.0,41733.0,1.498635]
[1641916969190,0.00015,41740.0,41738.0,0.00120436]
[1641916969390,0.00015,41740.0,41739.0,1.120717]
[1641916969635,0.00015,41740.0,41739.0,0.070717]
[1641916969835,0.00015,41740.0,41739.0,2.10341129]
[1641916970536,0.00015,41740.0,41739.0,2.20341129]
[1641916970739,0.00015,41740.0,41739.0,2.41341129]
[1641916970937,0.00125,41749.0,41743.0,0.026612]
[1641916971136,0.00125,41749.0,41744.0,1.3173239]
[1641916971339,0.00125,41749.0,41744.0,1.3439269]
[1641916971538,0.00125,41749.0,41748.0,1.63021001]
[1641916971737,0.00210635,41749.0,41748.0,1.63021001]
[1641916971938,0.00210635,41749.0,41748.0,1.73021001]
[1641916972639,0.00125,41749.0,41748.0,1.73021001]
[1641916972840,0.00125,41749.0,41748.0,0.134598]
[1641916973037,0.00125,41749.0,41748.0,1.62863009]
[1641916973490,0.00125,41749.0,41748.0,1.72863009]
[1641916973690,0.00125,41749.0,41748.0,0.45663009]
[1641916974092,0.00125,41749.0,41748.0,1.72863009]
[1641916974496,0.00125,41749.0,41748.0,1.92863009]
[1641916974794,0.00125,41749.0,41748.0,1.97273009]
[1641916975294,0.0001,41750.0,41749.0,0.286463]
[1641916975497,0.0001,41750.0,41749.0,1.402563]
[1641916975893,0.0001,41750.0,41749.0,1.502563]
[1641916976292,0.0001,41750.0,41749.0,1.602463]
[1641916976693,0.0001,41750.0,41749.0,1.644463]
[1641916977041,0.0001,41750.0,41749.0,1.544463]
[1641916977241,0.0001,41750.0,41749.0,1.50933718]
[1641916978043,0.0001,41750.0,41749.0,1.76733718]
[1641916978242,0.0001,41750.0,41749.0,1.76854277]
[1641916978441,0.0001,41750.0,41749.0,1.66864277]
[1641916978841,0.0001,41750.0,41749.0,1.69664277]
[1641916979045,0.00085632,41752.0,41749.0,1.69664277]
[1641916979242,6.32e-06,41753.0,41752.0,1.88089519]
[1641916979442,0.001,41757.0,41755.0,0.00128104]
[1641916979641,0.002,41768.0,41759.0,0.2]
[1641916979844,0.001,41762.0,41759.0,0.2]
[1641916980042,0.001,41762.0,41758.0,1.37325584]
[1641916980243,0.001,41762.0,41761.0,0.28768409]
[1641916980442,0.001,41762.0,41761.0,1.55968409]
[1641916980645,0.001,41762.0,41761.0,2.42241258]
[1641916980887,0.001,41762.0,41761.0,2.0429404]
[1641916982087,0.001,41762.0,41761.0,2.0319404]
[1641916982287,0.001,41762.0,41761.0,2.1516414]
[1641916982690,0.001,41762.0,41761.0,2.1957414]
[1641916982889,0.001,41762.0,41761.0,2.4067414]
[1641916983092,0.001,41762.0,41761.0,2.20803102]
[1641916983292,0.001,41762.0,41761.0,1.92034693]
[1641916983489,0.001,41762.0,41761.0,2.12034693]
[1641916984092,0.001,41762.0,41761.0,2.10934693]
[1641916984541,0.001,41762.0,41761.0,2.39459925]
[1641916984742,0.001,41762.0,41761.0,2.20759925]
[1641916985044,0.00325,41770.0,41764.0,1.25]
[1641916985045,0.00457428,41770.0,41764.0,1.25]
[1641916985243,0.00337428,41770.0,41768.0,0.00123827]
[1641916985444,0.00227428,41770.0,41769.0,1.34530665]
[1641916985742,0.001,41777.0,41772.0,1.472]
[1641916985946,0.001,41777.0,41776.0,1.68139307]
[1641916986145,0.001,41777.0,41776.0,1.90967307]
[1641916986345,0.001,41777.0,41776.0,1.96950607]
[1641916986843,0.001,41777.0,41776.0,1.97850607]
[1641916987446,0.001,41777.0,41776.0,1.91867307]
[1641916988296,0.001,41777.0,41776.0,1.90967307]
[1641916988490,0.001,41777.0,41776.0,1.70028]
[1641916988692,0.001,41777.0,41776.0,1.4161]
[1641916988989,0.001,41777.0,41776.0,0.0561]
[1641916989188,1.00120611,41776.0,41768.0,0.00085569]
[1641916989387,1.10120611,41776.0,41768.0,0.00085569]
[1641916989588,1.10120611,41776.0,41765.0,0.5019869]
[1641916989789,0.00084862,41774.0,41768.0,0.00085565]
[1641916990190,0.00084862,41774.0,41773.0,0.0999]
[1641916990390,0.2248,41781.0,41773.0,0.0999]
[1641916990589,0.04554165,41780.0,41773.0,0.0999]
[1641916990790,0.008,41774.0,41773.0,0.1099]
[1641916992036,0.008,41774.0,41770.0,0.00015]
[1641916992237,0.44111859,41780.0,41770.0,0.00015]
[1641916992437,0.54111859,41780.0,41769.0,0.00015]
[1641916992637,0.54111859,41780.0,41770.0,0.3166305]
[1641916992839,0.56411859,41780.0,41772.0,0.42854082]
[1641916993038,0.12427432,41780.0,41772.0,0.42854082]
[1641916993239,0.12427432,41780.0,41773.0,1.272]
[1641916993240,0.00083967,41778.0,41773.0,1.272]
[1641916994240,0.1,41780.0,41773.0,1.272]
[1641916994440,0.00083967,41778.0,41773.0,1.272]
[1641916994641,0.00083967,41778.0,41773.0,1.33305082]
[1641916994841,0.00083967,41778.0,41773.0,1.27421282]
[1641916995441,0.00083967,41778.0,41777.0,1.59563189]
[1641916995793,0.00083967,41778.0,41777.0,1.75669664]
[1641916996189,0.00083967,41778.0,41777.0,1.69686464]
[1641916996588,0.00083967,41778.0,41777.0,1.89686464]
[1641916996788,0.001,41782.0,41777.0,1.91386464]
[1641916996989,0.00083969,41780.0,41777.0,1.91386464]
[1641916997189,0.00083969,41780.0,41779.0,1.09314565]
[1641916997391,0.19528622,41797.0,41781.0,1.25]
[1641916997594,0.27856447,41817.0,41793.0,1.25]
[1641916997595,0.0999,41808.0,41793.0,1.25]
[1641916997892,0.42129393,41821.0,41801.0,0.00122779]
[1641916998092,0.151,41823.0,41820.0,0.5985]
[1641916998093,0.66348351,41822.0,41820.0,0.5985]
[1641916998293,1.47398607,41824.0,41823.0,0.40986431]
[1641916998294,1.03598607,41824.0,41823.0,0.40986431]
[1641916998492,0.0478,41826.0,41824.0,0.20198]
[1641916998795,1.11651138,41836.0,41823.0,1.40986431]
[1641916998796,1.11651138,41836.0,41825.0,0.0468]
[1641916998991,1.11651138,41836.0,41826.0,0.0479]
[1641916999193,1.11651138,41836.0,41823.0,0.40986431]
[1641916999194,1.11151138,41836.0,41831.0,0.00124958]
[1641916999546,1.11151138,41836.0,41835.0,0.00020171]
[1641916999547,0.91151138,41836.0,41835.0,0.00020171]
[1641916999745,0.012817,41840.0,41835.0,0.04810171]
[1641916999946,0.012817,41840.0,41835.0,0.04918741]
[1641917000146,0.31592717,41840.0,41835.0,0.04918741]
[1641917000348,0.41463816,41840.0,41835.0,0.00128741]
[1641917000646,0.012817,41840.0,41835.0,0.40197736]
[1641917000846,0.012817,41840.0,41830.0,0.05]
[1641917001045,0.012817,41840.0,41817.0,0.5]
[1641917001046,1.50095266,41820.0,41817.0,0.5]
[1641917001247,0.00015,41830.0,41821.0,0.2]
[1641917001449,0.00015,41830.0,41823.0,0.1]
[1641917001450,0.30073977,41829.0,41823.0,0.1]
[1641917001648,0.00015,41830.0,41829.0,0.00120116]
[1641917001847,0.00015,41830.0,41825.0,0.05]
[1641917002148,0.00015,41830.0,41827.0,0.48365221]
[1641917002346,0.00015,41830.0,41829.0,1.3499]
[1641917002945,0.00015,41830.0,41829.0,1.76079468]
[1641917003145,0.00015,41830.0,41829.0,1.81079468]
[1641917003390,0.00319608,41838.0,41829.0,1.81079468]
[1641917003391,0.01708364,41837.0,41835.0,0.00128271]
[1641917003990,0.01708364,41837.0,41835.0,0.36126468]
[1641917004188,0.01208364,41837.0,41835.0,0.48075468]
[1641917004388,0.01208364,41837.0,41835.0,0.53075468]
[1641917004591,0.01208364,41837.0,41835.0,0.12077271]
[1641917004788,0.01208364,41837.0,41836.0,0.0479]
[1641917005589,0.01208364,41837.0,41835.0,0.01]
[1641917006090,0.01208364,41837.0,41830.0,1.272]
[1641917006388,0.01208364,41837.0,41834.0,0.00128954]
[1641917006592,0.00079148,41836.0,41835.0,0.00120319]
[1641917006792,0.00079148,41836.0,41835.0,1.27320319]
[1641917007238,0.00079148,41836.0,41835.0,1.6858293]
[1641917007438,0.00079148,41836.0,41835.0,1.27320319]
[1641917007639,0.01208364,41837.0,41835.0,1.47320319]
[1641917008142,0.00316545,41845.0,41835.0,1.47320319]
[1641917008146,0.00031797,41854.0,41844.0,0.00127469]
[1641917008340,0.16791,41856.0,41855.0,0.00124454]
[1641917008538,0.16791,41856.0,41855.0,2.03353027]
[1641917008539,0.16291,41856.0,41855.0,2.03353027]
[1641917008739,0.16291,41856.0,41855.0,1.60383454]
[1641917008940,0.16291,41856.0,41855.0,1.41983454]
[1641917009244,0.16291,41856.0,41855.0,0.14783454]
[1641917009440,0.16291,41856.0,41855.0,1.33714454]
[1641917009640,0.26291,41856.0,41855.0,0.06514454]
[1641917009841,0.636492,41856.0,41855.0,0.0639]
[1641917010041,0.16291,41856.0,41855.0,0.0479]
[1641917010240,0.16291,41856.0,41855.0,0.04915491]
[1641917010441,0.16291,41856.0,41855.0,0.0479]
[1641917010893,0.16291,41856.0,41855.0,0.25517845]
[1641917011292,0.16291,41856.0,41855.0,2.27717845]
[1641917011592,0.14791,41856.0,41855.0,2.27717845]
[1641917011795,0.14791,41856.0,41855.0,1.52717845]
[1641917012194,0.14791,41856.0,41855.0,1.52117845]
[1641917012496,0.00075408,41858.0,41855.0,2.10378052]
[1641917012695,0.00075408,41858.0,41856.0,1.82393391]
[1641917012893,4.08e-06,41858.0,41857.0,1.96082913]
[1641917013095,0.00015,41870.0,41858.0,1.25]
[1641917013294,0.00015,41870.0,41867.0,0.00127137]
[1641917013494,0.00015,41870.0,41867.0,0.04917137]
[1641917013693,0.00015,41870.0,41867.0,1.52117137]
[1641917013893,0.00015,41870.0,41867.0,1.32117137]
[1641917014093,0.00015,41870.0,41867.0,1.31617137]
[1641917014299,8.62e-05,41869.0,41867.0,0.16664851]
[1641917014554,8.62e-05,41869.0,41868.0,2.83646614]
[1641917014747,8.62e-05,41869.0,41868.0,2.57113104]
[1641917014946,8.62e-05,41869.0,41868.0,0.04913104]
[1641917015147,8.62e-05,41869.0,41868.0,0.59913104]
[1641917015349,8.62e-05,41869.0,41868.0,0.60883004]
[1641917015547,8.62e-05,41869.0,41868.0,0.5479]
[1641917015749,8.62e-05,41869.0,41868.0,0.0479]
[1641917016549,8.62e-05,41869.0,41860.0,0.0012479]
[1641917016551,0.9,41868.0,41860.0,0.0491479]
[1641917016749,0.3133213,41869.0,41860.0,0.0479]
[1641917016953,0.1,41868.0,41867.0,0.0999]
[1641917017149,8.62e-05,41869.0,41867.0,0.0999]
[1641917017551,0.46597377,41863.0,41862.0,0.0008552]
[1641917017750,0.89998974,41863.0,41862.0,0.0008552]
[1641917017950,0.94998974,41863.0,41862.0,0.0008552]
[1641917018151,0.99998974,41863.0,41862.0,0.0008552]
[1641917018388,1.24910173,41863.0,41859.0,0.0999]
[1641917018590,1.24910173,41863.0,41860.0,0.00085521]
[1641917019087,0.99998974,41863.0,41860.0,0.00085521]
[1641917019490,0.99998974,41863.0,41859.0,0.1029]
[1641917019689,0.75,41860.0,41859.0,0.10375522]
[1641917019887,0.75,41860.0,41859.0,0.00085522]
[1641917019888,1.4087087,41860.0,41859.0,0.00085522]
[1641917020090,1.1351267,41860.0,41859.0,0.00085522]
[1641917020289,0.4,41859.0,41848.0,0.00015]
[1641917020489,0.05,41857.0,41848.0,0.00015]
[1641917020690,0.1,41857.0,41843.0,0.00015]
[1641917020888,0.33789198,41853.0,41848.0,0.009]
[1641917021088,0.67204587,41852.0,41848.0,0.009]
[1641917021296,1.05,41850.0,41841.0,0.5]
[1641917021495,0.67204587,41852.0,41841.0,0.22928]
[1641917021496,0.75,41849.0,41841.0,0.22928]
[1641917021691,0.1,41849.0,41841.0,0.22928]
[1641917021889,0.05,41849.0,41841.0,0.22928]
[1641917022142,0.42207331,41845.0,41843.0,0.00046326]
[1641917022538,0.47207331,41845.0,41843.0,0.00046326]
[1641917022840,0.53607331,41845.0,41843.0,0.008]
[1641917023039,0.5,41843.0,41838.0,0.00015]
[1641917023238,0.48607331,41845.0,41838.0,0.00015]
[1641917023439,0.29240664,41844.0,41836.0,0.10005]
[1641917023640,0.48607331,41845.0,41837.0,0.43187884]
[1641917023841,0.064,41845.0,41837.0,0.43202884]
[1641917024040,0.00015,41860.0,41842.0,0.00127031]
[1641917024041,0.00138906,41860.0,41842.0,0.00127031]
[1641917024242,0.00015,41860.0,41844.0,0.00120913]
[1641917024442,0.00015,41860.0,41858.0,0.00125803]
[1641917024644,0.3390124,41860.0,41850.0,0.044]
[1641917024840,0.48028484,41858.0,41852.0,0.00129158]
[1641917025641,0.00039539,41858.0,41852.0,0.00129158]
[1641917026403,0.00039539,41858.0,41852.0,0.34506947]
[1641917026602,0.00039539,41858.0,41853.0,0.11944]
[1641917026803,0.42667499,41860.0,41852.0,0.34506947]
[1641917027002,0.42667499,41860.0,41852.0,0.35306947]
[1641917027003,0.01273122,41858.0,41852.0,0.35306947]
[1641917027208,0.01273122,41858.0,41852.0,0.00929158]
[1641917027404,0.01273122,41858.0,41852.0,0.067728]
[1641917027605,0.01273122,41858.0,41853.0,0.3094182]
[1641917027804,0.01273122,41858.0,41854.0,1.272]
[1641917028007,0.012,41858.0,41856.0,1.272]
[1641917028205,0.01273123,41858.0,41857.0,1.393591]
[1641917028405,0.01273123,41858.0,41857.0,0.293591]
[1641917028706,0.00073123,41858.0,41857.0,1.565591]
[1641917028905,0.00292452,41864.0,41859.0,0.2]
[1641917029106,8.62e-05,41869.0,41863.0,1.45128399]
[1641917029304,0.24711816,41873.0,41864.0,0.044]
[1641917029305,0.41322332,41871.0,41864.0,0.044]
[1641917029544,0.24711816,41873.0,41864.0,0.044]
[1641917029545,0.0011,41873.0,41865.0,0.2]
[1641917029845,0.0011,41873.0,41866.0,0.044]
[1641917030043,0.0011,41873.0,41866.0,1.316]
[1641917030247,0.0011,41873.0,41866.0,1.31220399]
[1641917030445,0.0011,41873.0,41868.0,0.00120875]
[1641917031045,0.0011,41873.0,41870.0,0.059704]
[1641917031247,0.0011,41873.0,41871.0,1.57395991]
[1641917031446,0.0011,41873.0,41872.0,0.31093305]
[1641917031648,0.0011,41873.0,41872.0,1.26820399]
[1641917032046,0.0011,41873.0,41872.0,1.46820399]
[1641917032246,0.0011,41873.0,41872.0,1.51220399]
[1641917032945,0.0011,41873.0,41872.0,1.52820399]
[1641917034298,0.0011,41873.0,41872.0,1.51220399]
[1641917034498,0.00072465,41875.0,41874.0,0.259683]
[1641917034698,0.00072465,41875.0,41874.0,1.57188699]
[1641917035101,0.001,41878.0,41877.0,2.63880317]
[1641917035299,0.001,41878.0,41877.0,2.88280317]
[1641917035501,0.08276425,41882.0,41878.0,1.45]
[1641917035700,0.08276425,41882.0,41881.0,2.71820399]
[1641917035900,0.08276425,41882.0,41881.0,2.93674643]
[1641917036200,0.00066621,41894.0,41885.0,2.71946848]
[1641917036201,0.31028731,41894.0,41885.0,2.71946848]
[1641917036401,0.00066621,41894.0,41886.0,1.25]